bitfinex/quotes_SOLUSD_20250821
["timestamp","ask_amount","ask_price","bid_price","bid_amount"]
[1755782747291,4.9814501,184.98,184.94,84.4814501]
[1755782747494,5.6814501,184.99,184.94,84.4814501]
[1755782747708,5.6814501,184.99,184.95,42.18]
[1755782747920,0.7,184.98,184.95,42.18]
[1755782749115,5.6814501,184.99,184.95,42.18]
[1755782749329,5.6814501,184.99,184.95,42.86]
[1755782749510,4.9814501,185.0,184.95,47.8414501]
[1755782749720,9.30715024,185.0,184.95,47.8414501]
[1755782750101,3.62570014,185.0,184.97,4.9814501]
[1755782750304,0.06,185.02,184.98,0.68]
[1755782750305,3.62570014,185.01,184.98,0.68]
[1755782750508,3.62570014,185.01,184.99,0.68]
[1755782750827,0.06,185.02,185.0,5.6614501]
[1755782751394,0.06,185.02,185.0,0.68]
[1755782751796,0.06,185.02,185.01,47.8414501]
[1755782752189,0.06,185.02,185.01,47.9414501]
[1755782753126,0.06,185.02,185.01,47.2414501]
[1755782753304,0.06,185.02,185.01,42.26]
[1755782753619,0.06,185.02,185.01,47.9214501]
[1755782754621,0.06,185.02,185.01,53.32656333]
[1755782756731,0.06,185.04,185.02,13.59559401]
[1755782756910,3.62570014,185.14,185.11,4.9814501]
[1755782757230,3.62570014,185.15,185.11,47.2814501]
[1755782757428,0.7,185.13,185.11,47.2814501]
[1755782757596,3.62570014,185.16,185.12,4.9814501]
[1755782757797,0.7,185.15,185.12,4.9814501]
[1755782758026,0.7,185.14,185.12,4.9814501]
[1755782758522,0.7,185.14,185.11,47.2814501]
[1755782758923,0.7,185.13,185.11,42.3]
[1755782759224,4.9814501,185.15,185.11,42.3]
[1755782759225,0.7,185.12,185.11,42.3]
[1755782759427,0.7,185.12,185.1,4.9814501]
[1755782759620,0.7,185.12,185.11,4.9814501]
[1755782759820,0.7,185.14,185.11,4.9814501]
[1755782760121,4.9814501,185.15,185.1,42.28]
[1755782760312,5.6814501,185.13,185.1,42.26]
[1755782760638,4.9814501,185.11,185.03,0.68]
[1755782760806,4.9814501,185.09,185.04,8.99910087]
[1755782761125,0.7,185.08,185.04,47.2614501]
[1755782761418,0.7,185.08,185.04,47.9414501]
[1755782762410,5.6814501,185.07,185.04,42.28]
[1755782762596,0.7,185.06,185.04,42.28]
[1755782762796,0.7,185.07,185.04,47.2614501]
[1755782763000,4.9814501,185.08,185.04,42.28]
[1755782763235,0.7,185.07,185.04,42.28]
[1755782763399,4.9814501,185.08,185.04,47.2614501]
[1755782763600,5.6814501,185.08,185.04,47.9414501]
[1755782763839,0.7,185.08,185.04,47.9414501]
[1755782764215,0.7,185.07,185.04,42.28]
[1755782764417,5.6814501,185.07,185.04,42.28]
[1755782764816,0.7,185.07,185.04,42.28]
[1755782765028,5.6814501,185.07,185.04,42.28]
[1755782766529,4.9814501,185.06,185.04,42.28]
[1755782767039,0.7,185.09,185.04,42.28]
[1755782767346,5.6814501,185.08,185.04,42.28]
[1755782767707,5.6814501,185.08,185.04,120.92]
[1755782768017,0.06,185.1,185.04,42.28]
[1755782768221,0.06,185.1,185.05,5.6614501]
[1755782768515,4.9814501,185.09,185.05,5.6614501]
[1755782768720,5.6814501,185.09,185.05,0.68]
[1755782769106,4.9814501,185.07,185.04,42.28]
[1755782769328,5.6814501,185.06,185.04,42.28]
[1755782769625,0.7,185.09,185.03,83.6214501]
[1755782769825,0.06,185.1,185.07,4.9814501]
[1755782770146,0.06,185.1,185.08,0.68]
[1755782770347,0.06,185.1,185.08,5.6614501]
[1755782770641,0.06,185.1,185.09,5.6614501]
[1755782770819,0.06,185.1,185.09,0.68]
[1755782771438,0.06,185.1,185.09,47.9214501]
[1755782771642,0.06,185.1,185.09,42.94]
[1755782772546,0.06,185.1,185.09,47.9214501]
[1755782772929,0.06,185.1,185.09,42.94]
[1755782773246,0.06,185.1,185.08,42.26]
[1755782774621,0.06,185.1,185.09,5.6614501]
[1755782775315,0.06,185.1,185.09,0.68]
[1755782775649,0.06,185.1,185.09,4.9814501]
[1755782775849,0.06,185.1,185.08,42.26]
[1755782776143,0.06,185.1,185.08,42.94]
[1755782776440,0.06,185.1,185.08,42.26]
[1755782776819,0.06,185.1,185.08,47.2414501]
[1755782777015,0.06,185.1,185.08,47.9414501]
[1755782777227,0.06,185.1,185.08,42.26]
[1755782777414,0.06,185.1,185.06,5.6814501]
[1755782777615,0.74,185.1,185.08,42.26]
[1755782778339,0.74,185.1,185.04,26.73]
[1755782778340,0.68,185.09,185.04,26.73]
[1755782778543,5.6614501,185.09,185.05,47.2414501]
[1755782778720,5.6614501,185.09,185.05,42.26]
[1755782779751,5.6614501,185.09,185.05,42.96]
[1755782779966,0.06,185.1,185.06,4.9814501]
[1755782780118,0.06,185.1,185.07,4.9814501]
[1755782780321,0.06,185.1,185.06,4.9814501]
[1755782780542,0.74,185.1,185.06,5.6814501]
[1755782781254,0.06,185.1,185.07,0.7]
[1755782781629,0.06,185.1,185.06,4.9814501]
[1755782781962,0.06,185.1,185.07,0.7]
[1755782782454,0.06,185.1,185.08,0.7]
[1755782783031,0.06,185.1,185.06,4.9814501]
[1755782783251,5.7214501,185.1,185.06,5.6814501]
[1755782784049,5.6614501,185.09,185.05,47.2414501]
[1755782784234,5.6614501,185.09,185.05,47.9414501]
[1755782784436,5.6614501,185.09,185.05,42.96]
[1755782784621,4.9814501,185.09,185.05,42.26]
[1755782784822,4.9814501,185.09,185.06,0.7]
[1755782785871,5.0414501,185.1,185.05,47.2414501]
[1755782786175,5.0414501,185.1,185.06,0.7]
[1755782786320,5.0414501,185.1,185.05,47.2414501]
[1755782786524,0.06,185.1,185.07,0.7]
[1755782786854,0.06,185.1,185.06,4.9814501]
[1755782786855,0.06,185.1,185.08,0.7]
[1755782788050,0.06,185.1,185.09,0.7]
[1755782788354,0.06,185.1,185.09,78.64]
[1755782788562,0.06,185.1,185.09,79.34]
[1755782788928,0.06,185.1,185.09,78.64]
[1755782789151,0.06,185.1,185.09,79.34]
[1755782789852,0.06,185.1,185.09,78.64]
[1755782790162,0.06,185.1,185.09,79.34]
[1755782795546,0.06,185.1,185.09,84.3214501]
[1755782797181,5.6614501,185.15,185.09,84.3214501]
[1755782797182,3.63307625,185.16,185.11,26.0]
[1755782797334,3.63695137,185.23,185.16,26.0]
[1755782797539,3.63695137,185.22,185.19,4.9814501]
[1755782797746,4.31695137,185.21,185.19,42.24]
[1755782797961,3.63695137,185.24,185.22,26.0]
[1755782798164,3.63695137,185.23,185.22,26.0]
[1755782798349,3.63695137,185.26,185.2,4.9814501]
[1755782798551,4.9814501,185.24,185.19,26.0]
[1755782798765,4.31695137,185.23,185.19,30.9814501]
[1755782799064,4.31695137,185.23,185.19,31.6814501]
[1755782799278,0.68,185.25,185.2,4.9814501]
[1755782799570,0.68,185.25,185.16,4.98145]
[1755782799571,5.6614501,185.22,185.18,26.0]
[1755782799869,0.68,185.21,185.16,4.98145]
[1755782800179,3.63695137,185.2,185.13,43.02]
[1755782800364,9.29840147,185.19,185.14,9.9629001]
[1755782800674,4.9814501,185.19,185.15,0.7]
[1755782800866,4.9814501,185.2,185.15,0.7]
[1755782801041,0.68,185.19,185.13,56.615594]
[1755782801240,0.68,185.19,185.15,4.9814501]
[1755782801444,0.68,185.18,185.15,4.9814501]
[1755782802148,0.68,185.2,185.15,4.9814501]
[1755782802342,4.9814501,185.19,185.15,4.9814501]
[1755782802563,3.63695137,185.23,185.13,60.8970441]
[1755782802564,5.6614501,185.18,185.13,60.8970441]
[1755782802768,4.9814501,185.15,185.11,42.32]
[1755782803080,0.68,185.15,185.11,5.6814501]
[1755782803579,4.9814501,185.16,185.11,4.9814501]
[1755782803903,4.9814501,185.16,185.11,5.6814501]
[1755782804359,0.68,185.15,185.11,5.6814501]
[1755782804558,5.6614501,185.15,185.1,4.9814501]
[1755782804781,5.6614501,185.15,185.1,5.6814501]
[1755782804948,4.9814501,185.15,185.1,5.6814501]
[1755782805146,5.6614501,185.15,185.1,5.6814501]
[1755782805476,5.6614501,185.15,185.1,0.7]
[1755782805652,4.9814501,185.14,185.1,0.7]
[1755782805851,5.6614501,185.13,185.08,5.6814501]
[1755782806381,5.6614501,185.13,185.08,4.9814501]
[1755782806673,5.6614501,185.13,185.09,0.7]
[1755782806882,0.68,185.13,185.09,0.7]
[1755782807181,5.6614501,185.13,185.09,0.7]
[1755782807553,5.6614501,185.13,185.08,4.9814501]
[1755782807554,4.9814501,185.13,185.08,4.9814501]
[1755782807784,4.9814501,185.13,185.1,0.66]
[1755782807985,4.9814501,185.14,185.1,0.66]
[1755782808977,4.9814501,185.14,185.09,4.9814501]
[1755782808978,4.9814501,185.13,185.09,4.9814501]
[1755782809178,4.31695137,185.15,185.1,0.66]
[1755782809409,4.9814501,185.13,185.1,0.66]
[1755782809908,3.63695137,185.15,185.11,5.6414501]
[1755782810121,4.9814501,185.15,185.11,0.66]
[1755782810412,5.6614501,185.15,185.11,0.66]
[1755782810616,4.9814501,185.14,185.11,0.66]
[1755782810779,4.9814501,185.14,185.09,5.6414501]
[1755782810986,5.6614501,185.14,185.1,0.66]
[1755782811488,0.68,185.13,185.08,14.255594]
[1755782811807,5.6614501,185.13,185.08,5.6414501]
[1755782812010,3.63695137,185.17,185.11,4.9814501]
[1755782812309,0.06,185.18,185.1,4.9814501]
[1755782812310,5.0414501,185.15,185.1,4.9814501]
[1755782812497,0.68,185.14,185.1,5.6414501]
[1755782813004,5.0414501,185.15,185.1,5.6414501]
[1755782813202,5.7214501,185.14,185.1,0.66]
[1755782813399,5.7214501,185.14,185.09,10.0229001]
[1755782813615,0.68,185.13,185.09,10.6829001]
[1755782813920,0.06,185.14,185.1,5.6414501]
[1755782814121,0.06,185.14,185.11,5.6414501]
[1755782814291,0.06,185.14,185.12,4.9814501]
[1755782814493,0.06,185.14,185.12,5.6414501]
[1755782814683,0.06,185.14,185.13,5.6414501]
[1755782816232,0.06,185.14,185.13,0.66]
[1755782816540,0.06,185.14,185.13,84.2814501]
[1755782817630,0.06,185.14,185.11,42.3]
[1755782817631,5.7214501,185.14,185.11,42.3]
[1755782817935,0.74,185.14,185.11,42.3]
[1755782818223,0.06,185.14,185.12,5.6414501]
[1755782818613,0.06,185.14,185.13,0.66]
[1755782819122,0.06,185.14,185.12,4.9814501]
[1755782819299,0.06,185.14,185.12,5.6414501]
[1755782819824,0.06,185.14,185.12,0.66]
[1755782820011,0.06,185.14,185.12,5.6414501]
[1755782820208,0.06,185.14,185.09,2.825498]
[1755782820416,0.06,185.14,185.1,47.2614501]
[1755782820417,0.74,185.14,185.1,47.2614501]
[1755782820622,0.06,185.14,185.11,5.6414501]
[1755782821005,0.06,185.14,185.11,4.9814501]
[1755782821313,0.06,185.14,185.11,5.6414501]
[1755782821518,0.74,185.14,185.1,125.9014501]
[1755782821705,0.74,185.14,185.1,126.5614501]
[1755782822314,0.74,185.14,185.11,4.9814501]
[1755782822513,0.06,185.14,185.11,4.9814501]
[1755782823418,0.06,185.14,185.11,5.6414501]
[1755782823731,0.06,185.14,185.12,0.66]
[1755782823936,0.06,185.14,185.13,4.9814501]
[1755782824111,0.06,185.14,185.13,5.6414501]
[1755782824313,0.06,185.14,185.13,84.2814501]
[1755782824635,0.06,185.14,185.13,79.3]
[1755782824812,0.06,185.14,185.13,84.2814501]
[1755782825128,0.06,185.14,185.13,78.64]
[1755782826015,0.06,185.14,185.13,79.3]
[1755782826238,0.06,185.14,185.13,78.64]
[1755782828507,0.06,185.14,185.13,79.3]
[1755782829922,0.06,185.14,185.13,78.64]
[1755782832329,0.06,185.14,185.13,84.2814501]
[1755782832741,0.06,185.14,185.13,126.5214501]
[1755782833153,0.06,185.14,185.13,121.54]
[1755782833358,0.06,185.14,185.13,126.5214501]
[1755782833528,0.06,185.14,185.13,58.26450987]
[1755782833735,0.06,185.14,185.13,97.86010388]
[1755782834160,0.06,185.14,185.13,71.86010388]
[1755782837255,0.06,185.14,185.13,88.66026484]
[1755782837459,0.06,185.18,185.17,26.0]
[1755782837630,0.06,185.18,185.17,73.2214501]
[1755782837838,0.06,185.18,185.17,73.9114501]
[1755782838150,0.06,185.18,185.17,77.5484011]
[1755782839348,0.06,185.18,185.17,82.94884393]
[1755782840140,0.06,185.18,185.17,77.5484011]
[1755782840442,0.06,185.18,185.17,73.2214501]
[1755782840642,0.06,185.18,185.17,68.24]
[1755782840971,0.06,185.18,185.17,73.9114501]
[1755782841764,0.06,185.18,185.17,152.5514501]
[1755782842080,0.06,185.18,185.17,157.95189293]
[1755782842258,0.06,185.18,185.17,73.9114501]
[1755782843242,0.06,185.18,185.17,73.2214501]
[1755782843868,0.06,185.18,185.17,73.9114501]
[1755782844469,0.06,185.18,185.17,79.31189293]
[1755782844974,0.06,185.18,185.17,68.24]
[1755782845141,0.06,185.18,185.17,73.2214501]
[1755782845555,0.06,185.18,185.17,79.31189293]
[1755782845949,0.06,185.18,185.17,73.9114501]
[1755782846373,0.06,185.18,185.17,79.31189293]
[1755782846946,0.06,185.18,185.17,92.90748694]
[1755782847655,0.06,185.22,185.2,78.52]
[1755782847966,0.06,185.22,185.21,47.1614501]
[1755782848167,0.72,185.23,185.21,47.1614501]
[1755782848373,0.72,185.23,185.22,4.9814501]
[1755782848992,0.72,185.26,185.22,4.9814501]
[1755782849158,0.72,185.25,185.22,120.68]
[1755782850573,5.7014501,185.25,185.22,120.68]
[1755782850877,4.9814501,185.24,185.22,120.68]
[1755782851067,4.9814501,185.24,185.22,78.52]
[1755782851267,0.72,185.23,185.22,78.52]
[1755782853469,0.72,185.23,185.2,125.6814501]
[1755782853776,0.72,185.22,185.2,125.6814501]
[1755782854190,0.72,185.21,185.2,125.6814501]
[1755782854392,0.72,185.23,185.2,125.6814501]
[1755782854563,0.72,185.22,185.2,125.6814501]
[1755782855396,0.72,185.21,185.2,125.6814501]
[1755782855594,0.72,185.21,185.2,120.7]
[1755782856394,0.72,185.21,185.2,78.52]
[1755782856395,5.7014501,185.21,185.2,78.52]
[1755782856693,5.7014501,185.21,185.16,78.55]
[1755782856880,4.9814501,185.18,185.16,120.69]
[1755782857191,0.72,185.17,185.16,120.69]
[1755782857395,0.72,185.17,185.16,78.55]
[1755782857892,5.7014501,185.19,185.16,0.03]
[1755782858395,5.7014501,185.18,185.16,0.03]
[1755782858776,0.72,185.17,185.16,0.03]
[1755782860275,5.7014501,185.17,185.16,0.03]
[1755782860896,19.29704411,185.17,185.16,0.03]
[1755782861190,22.92903535,185.17,185.16,0.03]
[1755782861391,28.32947818,185.17,185.16,0.03]
[1755782861592,33.31092828,185.17,185.15,0.03]
[1755782861780,27.91048545,185.16,185.15,0.03]
[1755782861989,22.92903535,185.16,185.15,0.03]
[1755782864097,65.08903535,185.16,185.15,0.03]
[1755782864687,60.10758525,185.16,185.15,0.03]
[1755782865076,65.08903535,185.16,185.15,0.03]
[1755782865501,9.33344134,185.16,185.15,0.03]
[1755782865796,4.9814501,185.16,185.15,0.03]
[1755782866377,5.7014501,185.16,185.15,0.03]
[1755782866574,22.92368061,185.16,185.15,0.03]
[1755782869423,28.3244151,185.16,185.15,0.03]
[1755782869595,22.92368061,185.16,185.15,0.03]
[1755782870410,39.59559401,185.14,185.13,0.03]
[1755782870611,53.18513071,185.14,185.13,0.03]
[1755782870815,53.85513071,185.14,185.13,0.03]
[1755782871007,59.25644863,185.14,185.13,0.03]
[1755782871892,63.5978482,185.14,185.13,0.03]
[1755782872294,105.7578482,185.14,185.13,0.03]
[1755782873505,96.01513071,185.14,185.13,0.03]
[1755782873927,85.40223051,185.14,185.13,0.03]
[1755782874235,91.05368061,185.14,185.13,0.03]
[1755782874733,48.20368061,185.14,185.13,0.03]
[1755782875035,61.42704411,185.14,185.13,0.03]
[1755782875728,60.75704411,185.14,185.13,0.03]
[1755782876535,61.42704411,185.14,185.13,0.03]
[1755782876730,60.75704411,185.14,185.13,0.03]
[1755782879326,98.84491891,185.14,185.13,0.03]
[1755782880211,20.03201871,185.14,185.13,0.03]
[1755782880440,4.9814501,185.16,185.13,0.72]
[1755782880732,4.9814501,185.16,185.14,0.69]
[1755782880932,4.9814501,185.16,185.13,0.03]
[1755782881140,4.9814501,185.15,185.13,0.72]
[1755782881344,4.9814501,185.15,185.14,0.69]
[1755782881715,4.9814501,185.15,185.13,0.03]
[1755782882026,4.9814501,185.15,185.13,0.72]
[1755782882235,4.9814501,185.14,185.13,0.03]
[1755782883149,4.9814501,185.17,185.13,0.72]
[1755782883377,0.06,185.16,185.14,0.69]
[1755782883647,0.06,185.16,185.15,0.69]
[1755782884217,5.0414501,185.16,185.13,0.72]
[1755782884538,4.9814501,185.15,185.13,0.03]
[1755782884738,4.9814501,185.15,185.14,0.69]
[1755782884929,5.0414501,185.16,185.14,0.69]
[1755782885433,4.9814501,185.15,185.13,0.03]
[1755782885818,5.0414501,185.16,185.13,0.72]
[1755782886031,0.73,185.16,185.13,0.03]
[1755782886344,4.9814501,185.15,185.14,0.69]
[1755782886557,5.0414501,185.16,185.14,0.69]
[1755782887454,5.0414501,185.16,185.15,0.69]
[1755782887830,0.06,185.16,185.15,0.69]
[1755782888535,5.0414501,185.16,185.13,0.03]
[1755782888936,0.06,185.16,185.13,0.03]
[1755782889132,0.06,185.16,185.14,0.69]
[1755782889337,5.0414501,185.16,185.15,0.69]
[1755782889666,0.06,185.16,185.15,0.69]
[1755782890522,0.06,185.16,185.13,0.03]
[1755782890722,0.06,185.16,185.14,0.69]
[1755782891136,4.9814501,185.15,185.13,0.03]
[1755782891459,4.9814501,185.14,185.13,0.03]
[1755782891866,5.6514501,185.14,185.13,0.03]
[1755782893048,19.24704411,185.14,185.13,0.03]
[1755782893457,27.85277461,185.14,185.13,0.03]
[1755782894138,33.25409253,185.14,185.13,0.03]
[1755782894462,27.85277461,185.14,185.13,0.03]
[1755782895032,33.25409253,185.14,185.13,0.03]
[1755782895229,27.85277461,185.14,185.13,0.03]
[1755782895657,70.01277461,185.14,185.13,0.03]
[1755782896239,75.41409253,185.14,185.13,0.03]
[1755782896754,78.24082161,185.14,185.13,0.03]
[1755782898338,82.79449802,185.14,185.13,0.03]
[1755782898541,35.2331801,185.14,185.13,0.03]
[1755782898754,77.4131801,185.14,185.13,0.03]
[1755782898957,72.85950369,185.14,185.13,0.03]
[1755782899155,25.69805359,185.14,185.13,0.03]
[1755782899343,93.20805359,185.14,185.13,0.03]
[1755782900239,93.89805359,185.14,185.13,0.03]
[1755782900566,77.4331801,185.14,185.13,0.03]
[1755782901278,80.25184026,185.14,185.13,0.03]
[1755782901636,67.19998467,185.14,185.13,0.03]
[1755782902037,70.02645182,185.14,185.13,0.03]
[1755782902237,93.19998467,185.14,185.13,0.03]
[1755782902463,37.42439066,185.14,185.13,0.03]
[1755782902766,79.60439066,185.14,185.13,0.03]
[1755782903264,79.60439066,185.14,185.13,0.75]
[1755782903857,79.60439066,185.14,185.13,0.03]
[1755782904361,93.88998467,185.14,185.13,0.03]
[1755782905875,93.19998467,185.14,185.13,0.03]
[1755782906549,37.42439066,185.14,185.13,0.03]
[1755782906759,37.42439066,185.14,185.13,0.75]
[1755782907047,79.60439066,185.14,185.13,0.75]
[1755782907439,37.42439066,185.14,185.13,0.75]
[1755782907672,11.42439066,185.14,185.13,0.75]
[1755782908060,6.44294056,185.14,185.13,0.75]
[1755782908371,11.42439066,185.14,185.13,0.75]
[1755782908970,6.44294056,185.14,185.13,0.75]
[1755782910073,11.42439066,185.14,185.13,0.03]
[1755782911675,25.01998467,185.14,185.13,0.03]
[1755782912048,25.70998467,185.14,185.13,0.03]
[1755782912488,25.01998467,185.14,185.13,0.03]
[1755782913289,25.70998467,185.14,185.13,0.03]
[1755782914051,30.69143477,185.14,185.13,0.03]
[1755782914286,25.01998467,185.14,185.13,0.03]
[1755782914587,67.19998467,185.14,185.13,0.03]
[1755782915076,67.19998467,185.14,185.13,0.75]
[1755782916155,67.19998467,185.14,185.13,0.03]
[1755782916873,11.42439066,185.14,185.13,0.75]
[1755782917084,53.60439066,185.14,185.13,0.75]
[1755782917458,11.42439066,185.14,185.13,0.75]
[1755782918157,11.42439066,185.14,185.13,0.03]
[1755782919988,11.42439066,185.14,185.13,0.75]
[1755782921052,11.42439066,185.14,185.13,0.03]
[1755782921568,54.27439066,185.14,185.13,0.03]
[1755782921772,67.86998467,185.14,185.13,0.03]
[1755782923060,67.17998467,185.14,185.13,0.03]
[1755782923567,67.86998467,185.14,185.13,0.03]
[1755782924761,67.17998467,185.14,185.13,0.03]
[1755782925585,67.17998467,185.14,185.13,0.75]
[1755782925785,67.17998467,185.14,185.13,0.03]
[1755782925987,62.19853457,185.14,185.13,0.03]
[1755782926490,62.88853457,185.14,185.13,0.03]
[1755782926686,62.19853457,185.14,185.13,0.03]
[1755782926867,67.86998467,185.14,185.13,0.03]
[1755782927067,62.88853457,185.14,185.13,0.03]
[1755782927271,67.17998467,185.14,185.13,0.03]
[1755782927471,62.19853457,185.14,185.13,0.03]
[1755782928378,67.86998467,185.14,185.13,0.03]
[1755782929988,6.44294056,185.14,185.13,0.73]
[1755782930363,6.44294056,185.14,185.13,0.03]
[1755782931970,48.60294056,185.14,185.13,0.03]
[1755782932169,6.44294056,185.14,185.13,0.73]
[1755782934011,6.44294056,185.14,185.13,0.03]
[1755782935999,6.44294056,185.14,185.13,0.73]
[1755782937191,6.44294056,185.14,185.13,5.7114501]
[1755782937476,3.6242804,185.14,185.13,5.7114501]
[1755782938304,3.6242804,185.14,185.13,0.73]
[1755782938883,3.6242804,185.14,185.13,5.7114501]
[1755782940303,3.6242804,185.14,185.13,0.73]
[1755782940486,3.6242804,185.14,185.13,5.7114501]
[1755782944321,3.6242804,185.14,185.13,0.73]
[1755782944829,3.6242804,185.14,185.13,84.2314501]
[1755782944995,0.06,185.15,185.13,89.63303817]
[1755782945196,0.06,185.15,185.14,5.6814501]
[1755782945526,0.06,185.15,185.14,11.08276802]
[1755782948036,0.06,185.15,185.14,0.7]
[1755782948220,0.06,185.15,185.14,84.2014501]
[1755782950702,0.06,185.15,185.14,89.60276802]
[1755782952221,0.06,185.15,185.14,91.76732902]
[1755782954131,0.06,185.17,185.16,78.4]
[1755782954308,0.06,185.17,185.16,125.5214501]
[1755782954507,0.06,185.17,185.16,126.2214501]
[1755782955505,0.06,185.17,185.16,121.24]
[1755782955744,0.06,185.17,185.16,126.2214501]
[1755782956046,0.06,185.17,185.16,121.24]
[1755782956213,0.06,185.17,185.16,126.2214501]
[1755782957019,0.06,185.17,185.16,131.62218459]
[1755782960046,0.06,185.17,185.16,263.92218459]
[1755782960445,0.06,185.17,185.16,253.54]
[1755782960746,0.06,185.17,185.16,258.5214501]
[1755782961664,0.06,185.17,185.16,253.54]
[1755782961834,0.06,185.17,185.16,258.5214501]
[1755782962344,0.06,185.17,185.16,253.54]
[1755782962545,0.06,185.17,185.16,258.5214501]
[1755782962928,0.06,185.17,185.16,253.54]
[1755782963129,0.06,185.17,185.16,258.5214501]
[1755782963748,0.06,185.17,185.16,266.08662859]
[1755782964926,0.06,185.17,185.16,261.10517849]
[1755782965239,0.06,185.17,185.16,266.08662859]
[1755782966951,0.06,185.18,185.17,91.93559401]
[1755782967131,0.06,185.18,185.17,229.88704411]
[1755782967638,0.06,185.18,185.17,232.05113611]
[1755782968832,0.06,185.18,185.17,237.45157894]
[1755782971057,0.06,185.18,185.17,232.47012884]
[1755782971260,0.06,185.18,185.17,237.45157894]
[1755782975333,0.06,185.18,185.17,254.904092]
[1755782975535,0.74,185.18,185.17,254.904092]
[1755782975760,0.74,185.18,185.17,259.8855421]
[1755782976144,0.74,185.18,185.17,280.904092]
[1755782976346,0.74,185.18,185.17,285.8855421]
[1755782976540,0.06,185.18,185.17,286.30453483]
[1755782976753,0.06,185.18,185.17,291.28598493]
[1755782978042,0.06,185.18,185.17,286.30453483]
[1755782978249,0.06,185.18,185.17,291.28598493]
[1755782979166,0.06,185.18,185.17,280.904092]
[1755782979339,0.06,185.18,185.17,285.8855421]
[1755782979747,0.06,185.18,185.17,291.28598493]
[1755782980468,0.74,185.18,185.17,280.904092]
[1755782980669,0.74,185.18,185.17,285.8855421]
[1755782980854,0.06,185.18,185.17,291.28598493]
[1755782981056,0.06,185.18,185.17,286.30453483]
[1755782981363,0.06,185.18,185.17,285.8855421]
[1755782981567,0.74,185.18,185.17,285.8855421]
[1755782981752,0.74,185.18,185.17,280.904092]
[1755782981954,0.74,185.18,185.17,285.8855421]
[1755782982361,0.06,185.18,185.17,285.8855421]
[1755782983052,0.06,185.18,185.17,280.904092]
[1755782983369,0.74,185.18,185.17,285.8855421]
[1755782983557,0.74,185.18,185.17,280.904092]
[1755782983760,0.74,185.18,185.17,285.8855421]
[1755782983951,0.74,185.18,185.17,280.904092]
[1755782984277,0.74,185.18,185.17,78.34]
[1755782984466,0.74,185.18,185.17,120.42]
[1755782984865,0.74,185.18,185.17,42.08]
[1755782985059,0.74,185.18,185.17,47.0614501]
[1755782985279,0.74,185.18,185.17,42.08]
[1755782985458,0.74,185.18,185.17,47.0614501]
[1755782985657,0.74,185.18,185.17,42.08]
[1755782985862,0.74,185.18,185.17,47.0614501]
[1755782986276,0.06,185.18,185.17,47.7314501]
[1755782986458,0.06,185.18,185.17,47.0614501]
[1755782986860,0.06,185.18,185.17,42.08]
[1755782987081,0.06,185.18,185.17,47.0614501]
[1755782987661,0.06,185.18,185.17,42.08]
[1755782987879,0.06,185.18,185.17,47.0614501]
[1755782988872,0.06,185.18,185.17,42.08]
[1755782989071,0.06,185.18,185.17,47.0614501]
[1755782989585,0.06,185.18,185.17,125.4014501]
[1755782990177,0.06,185.18,185.17,120.42]
[1755782990373,0.06,185.18,185.17,125.4014501]
[1755782990760,0.06,185.18,185.17,126.1014501]